Workbook

Sheet READ ME
B8: ALAT PERHITUNGAN DAYA DAN TARIF UNTUK SOLAR MINI-GRID
B10: Alat ini memungkinkan untuk memperkirakan kapasitas solar mini-grid (kW dan kWh) dan investasi (Rp) serta biaya listrik (Rp per bulan). Biaya listrik dihitung berdasarkan praktek umum dalam listrik pedesaan dimana mini-grid dikelola oleh masyarakat itu sendiri.
B13: Disusun oleh: Amalia Suryani dan Robert Schultz
B14: Berkolaborasi dengan: Aliyah Fitrotun, David Jarrett, dan Prisma Megantoro
B15: ISTILAH-ISTILAH
C17: KK | D17: Kepala keluarga atau rumah tangga, dikategorikan menurut peralatan listrik yang dimiliki: dasar, sedang, tinggi (beberapa KK bisa terbebas dari tarif listrik)
C19: IS | D19: Institusi sosial/fasilitas publik misalnya sekolah, masjid, gereja, pura, pusat kesehatan, lampu jalan
C21: PUE | D21: Productive use of energy atau bisnis perdesaan misalnya warung, pertukangan kayu, penjahit, bengkel, penetasan telur
C23: SMG | D23: Solar mini-grid atau dikenal dengan PLTS (pembangkit listrik tenaga surya)
C25: TPD | D25: Tim pengelola desa (TPD): organisasi masyarakat yang bertanggungjawab dalam mengelola dan mengoperasikansolar mini-grid
B28: BAGAIMANA CARA MENGGUNAKAN?
B30: xyz | C30: Isian oleh pengguna | E30: xyz | F30: Sesuai dengan permintaan/konsumsi KK
B31: xyz | C31: Peringatan | E31: xyz | F31: Sesuai dengan permintaan/konsumsi IS
E32: xyz | F32: Sesuai dengan permintaan/konsumsi PUE
A33: Semua sel berwarna dalam alat ini terkunci untuk memasukkan data, demi menjamin integritas alat.
B34: LEMBARAN
B36: Dasbor | E36: RINGKASAN hasil perhitungan untuk membuat keputusan
B37: Beban KK | E37: Untuk memasukkan peralatan rumah tangga dan waktu pemakaian
B38: Beban IS | E38: Untuk memasukkan peralatan institusi sosial dan waktu pemakaian
B39: Beban PUE | E39: Untuk memasukkan peralatan bisnis perdesaan dan waktu pemakaian
B40: Parameter Teknis SMG | E40: Untuk memasukkan data teknis dan keuangan dasar solar mini-grid
B41: Daftar Peralatan | E41: Untuk memasukkan berbagai peralatan listrik dan perkiraan daya (W)
B43: ASUMSI UNTUK PERHITUNGAN
B45: 1. Tarif dasar adalah [pengeluaran & tabungan] dibagi dengan [jumlah KK yang membayar]
B46: 2. Tarif KK dasar adalah tarif terendah yang disarankan untuk rumah tangga
B47: 3. Proporsi IS dihitung secara relatif terhadap tarif dasar
B48: 4. Tarif PUE dihitung secara relatif terhadap tarif dasar
B49: 5. KK yang juga memiliki bisnis (PUE) harus membayar tarif akumulasi [tarif KK + tarif PUE]
B50: 6. Tarif tidak berlaku untuk IS
A52: Untuk informasi lebih lanjut: www.endev-indonesia.org; endev.indonesia@giz.de

Sheet Dasbor
B1: OUTPUT: Dasbor Hasil Perhitungan
B2: PENGELUARAN TPD | H2: RINGKASAN | P2: PERMINTAAN LISTRIK
B3: 1) Gaji bulanan
C4: Operator 1 | E4: 500000 | F4: IDR/bulan
C5: Operator 2 | E5: 400000 | F5: IDR/bulan | I5: PASOKAN LISTRIK | Q5: Permintaan rumah tangga (KK) | R5: W per KK | S5: Wh per KK | T5: # Koneksi | U5: Total kW | V5: Total kWh
C6: Bendahara | E6: 300000 | F6: IDR/bulan | I6: Total kapasitas pembangkitan | K6: =E24 -> 17 | L6: kW
C7: Sekretaris | E7: 300000 | F7: IDR/bulan | I7: Total beban | L7: =U10+U16+U23 -> 9.805 | M7: kW | Q7: ='Beban KK'!D2 -> KK Dasar | R7: ='Beban KK'!F14 -> 140 | S7: ='Beban KK'!G14 -> 480 | T7: 50 | U7: =R7*T7/1000 -> 7 | V7: =S7*T7/1000 -> 24
C8: Ketua | E8: 300000 | F8: IDR/bulan | I8: Total permintaan energi | K8: =V10+V16+V23 -> 41.685 | L8: kWh/hari | Q8: ='Beban KK'!K2 -> KK Sedang | R8: ='Beban KK'!M14 -> 115 | S8: ='Beban KK'!N14 -> 655 | T8: 10 | U8: =R8*T8/1000 -> 1.15 | V8: =S8*T8/1000 -> 6.55
E9: =SUM(E4:E8) -> 1800000 | F9: IDR/bulan | I9: Surplus/defisit energi | L9: =E26-K8 -> 43.315 | M9: kWh/hari | Q9: ='Beban KK'!R2 -> KK Tinggi | R9: ='Beban KK'!T14 -> 475 | S9: ='Beban KK'!U14 -> 655 | T9: 1 | U9: =R9*T9/1000 -> 0.475 | V9: =S9*T9/1000 -> 0.655
B10: 2) Pemeliharaan bulanan | E10: 100000 | F10: IDR/bulan | I10: Apabila energi defisit, kurangi permintaan listrik Anda! | Q10: Total permintaan KK | U10: =SUM(U7:U9) -> 8.625 | V10: =SUM(V7:V9) -> 31.205
B11: 3) Pengeluaran perbaikan | E11: 100000 | F11: IDR/bulan
B12: 4) Tabungan yang diharapkan | E12: 200000 | F12: IDR/bulan | I12: TARIF PELANGGAN | Q12: Permintaan institusi sosial (IS) | R12: W per IS | S12: Wh per IS | T12: # Koneksi | U12: Total kW | V12: Total kWh
I13: Tarif dasar: | L13: =E14/(E29-K15) -> 36065.57377 | M13: IDR/bulan | Q13: ='Beban IS'!E2 -> Sekolah | R13: ='Beban IS'!F14 -> 120 | S13: ='Beban IS'!G14 -> 960 | T13: 1 | U13: =R13*T13/1000 -> 0.12 | V13: =S13*T13/1000 -> 0.96
B14: Total PENGELUARAN | E14: =E9+E10+E11+E12 -> 2200000 | F14: IDR/bulan | I14: Proporsi IS: | K14: 0.05 | L14: =L13*K14 -> 1803.278689 | M14: IDR/bulan | Q14: ='Beban IS'!L2 -> Lampu jalan | R14: ='Beban IS'!M14 -> 10 | S14: ='Beban IS'!N14 -> 80 | T14: 50 | U14: =R14*T14/1000 -> 0.5 | V14: =S14*T14/1000 -> 4
I15: Jumlah KK terbebas dari tarif: | K15: 0 | L15: KK | Q15: ='Beban IS'!S2 -> Tipe 3 | R15: ='Beban IS'!T14 -> 0 | S15: ='Beban IS'!U14 -> 0 | T15: 0 | U15: =R15*T15/1000 -> 0 | V15: =S15*T15/1000 -> 0
B16: Total PEMASUKAN | E16: =SUM(U26:U31) -> 2897361.68 | F16: IDR/bulan | I16: =IF(T7=0,"",'Beban KK'!D2) -> KK Dasar | L16: =L13+L14 -> 37868.85246 | M16: IDR/bulan | Q16: Total permintaan IS | U16: =SUM(U13:U15) -> 0.62 | V16: =SUM(V13:V15) -> 4.96
I17: =IF(T8=0,"",'Beban KK'!K2) -> KK Sedang | L17: =IF(T8=0,"",(S8/S7)*L16) -> 51675.20492 | M17: IDR/bulan
B18: Untung/Defisit Aktual | E18: =E16-E14 -> 697361.6803 | F18: IDR/bulan | I18: =IF(T9=0,"",'Beban KK'!R2) -> KK Tinggi | L18: =IF(T9=0,"",(S9/S7)*L16) -> 51675.20492 | M18: IDR/bulan | Q18: Permintaan bisnis perdesaan (PUE) | R18: W per PUE | S18: Wh per PUE | T18: # Koneksi | U18: Total kW | V18: Total kWh
E19: =E18*12 -> 8368340.164 | F19: IDR/tahun | I19: =IF(T19=0,"",'Beban PUE'!D2) -> Penjahit | L19: =IF(T19=0,"",(S19/S7)*L16) -> 56803.27869 | M19: IDR/bulan | Q19: ='Beban PUE'!D2 -> Penjahit | R19: ='Beban PUE'!F14 -> 360 | S19: ='Beban PUE'!G14 -> 720 | T19: 1 | U19: =R19*T19/1000 -> 0.36 | V19: =S19*T19/1000 -> 0.72
I20: =IF(T20=0,"",'Beban PUE'!K2) -> Penetasan telur | L20: =IF(T20=0,"",(S20/S7)*L16) -> 378688.5246 | M20: IDR/bulan | Q20: ='Beban PUE'!K2 -> Penetasan telur | R20: ='Beban PUE'!M14 -> 200 | S20: ='Beban PUE'!N14 -> 4800 | T20: 1 | U20: =R20*T20/1000 -> 0.2 | V20: =S20*T20/1000 -> 4.8
B21: PASOKAN LISTRIK | I21: =IF(T21=0,"",'Beban PUE'!D16) ->  | L21: =IF(S21=0,"",(S21/S7)*L16) ->  | M21: IDR/bulan | Q21: ='Beban PUE'!D16 -> Tipe 3 | R21: ='Beban PUE'!F28 -> 0 | S21: ='Beban PUE'!G28 -> 0 | T21: 0 | U21: =R21*T21/1000 -> 0 | V21: =S21*T21/1000 -> 0
B22: Kapasitas pembangkitan listrik | E22: 20 | F22: kW | I22: =IF(T22=0,"",'Beban PUE'!K16) ->  | L22: =IF(S22=0,"",(S22/S7)*L16) ->  | M22: IDR/bulan | Q22: ='Beban PUE'!K16 -> Tipe 4 | R22: ='Beban PUE'!M28 -> 0 | S22: ='Beban PUE'!N28 -> 0 | T22: 0 | U22: =R22*T22/1000 -> 0 | V22: =S22*T22/1000 -> 0
B23: Faktor Ketersediaan dan Efisiensi | E23: 0.85 | F23: % | Q23: Total permintaan PUE | U23: =SUM(U19:U22) -> 0.56 | V23: =SUM(V19:V22) -> 5.52
B24: Kapasitas tersedia | E24: =E22*E23 -> 17 | F24: kW | I24: LAINNYA
B25: Waktu pembangkitan per hari | E25: ='Parameter Teknis SMG'!D21 -> 5 | F25: jam | I25: Jumlah modul PV yang diperlukan | L25: ='Parameter Teknis SMG'!K13 -> 100 | M25: Modul PV
B26: Energi terbangkit per hari (pasokan) | E26: =E24*E25 -> 85 | F26: kWh | I26: Jumlah baterai yang diperlukan | L26: ='Parameter Teknis SMG'!K15 -> 145 | M26: Baterai | S26: =Q7 -> KK Dasar | U26: =IF(T7=0,"",T7*L16) -> 1893442.623
B27: Konsumsi energi per hari (permintaan) | E27: =K8 -> 41.685 | F27: kWh | I27: Luas tanah yang diperlukan | L27: ='Parameter Teknis SMG'!L19 -> 572.5 | M27: m2 | S27: =Q8 -> KK Sedang | U27: =IF(T8=0,"",T8*L17) -> 516752.0492
B28: Surplus/defisit energi per hari | E28: =E26-E27 -> 43.315 | F28: kWh | I28: Perkiraan biaya infrastruktur | K28: ='Parameter Teknis SMG'!G14 -> 3007000000 | M28: IDR | S28: =Q9 -> KK Tinggi | U28: =IF(T9=0,"",T9*L18) -> 51675.20492
B29: Jumlah KK di desa | E29: =SUM(T7:T9) -> 61 | F29: KK | S29: =Q19 -> Penjahit | U29: =IF(T19=0,"",T19*L19) -> 56803.27869
S30: =Q20 -> Penetasan telur | U30: =IF(T20=0,"",T20*L20) -> 378688.5246
S31: =Q22 -> Tipe 4 | U31: =IF(T22=0,"",T22*L22) -> 

Sheet Beban KK
B1: INPUT: Perhitungan Beban Harian Rumah Tangga (KK)
B2: Permintaan rumah tangga: | D2: KK Dasar | I2: Permintaan rumah tangga: | K2: KK Sedang | P2: Permintaan rumah tangga: | R2: KK Tinggi
B3: Peralatan | C3: Wattage | D3: Jml | E3: Jam/ Hari | F3: Total W | G3: Total Wh | I3: Peralatan | J3: Wattage | K3: Jml | L3: Jam/ Hari | M3: Total W | N3: Total Wh | P3: Peralatan | Q3: Wattage | R3: Jml | S3: Jam/ Hari | T3: Total W | U3: Total Wh
B4: Lampu (fluorescent) | C4: =VLOOKUP(B4,'Daftar Peralatan'!$B$4:$C$23,2,FALSE) -> 20 | D4: 3 | E4: 4 | F4: =C4*D4 -> 60 | G4: =E4*F4 -> 240 | I4: Lampu (fluorescent) | J4: =VLOOKUP(I4,'Daftar Peralatan'!$B$4:$C$23,2,FALSE) -> 20 | K4: 3 | L4: 8 | M4: =J4*K4 -> 60 | N4: =L4*M4 -> 480 | P4: Lampu (fluorescent) | Q4: =VLOOKUP(P4,'Daftar Peralatan'!$B$4:$C$23,2,FALSE) -> 20 | R4: 1 | S4: 2 | T4: =Q4*R4 -> 20 | U4: =S4*T4 -> 40
B5: Kipas angin | C5: =VLOOKUP(B5,'Daftar Peralatan'!$B$4:$C$23,2,FALSE) -> 40 | D5: 2 | E5: 3 | F5: =C5*D5 -> 80 | G5: =E5*F5 -> 240 | I5: Kipas angin | J5: =VLOOKUP(I5,'Daftar Peralatan'!$B$4:$C$23,2,FALSE) -> 40 | K5: 1 | L5: 4 | M5: 40 | N5: 160 | P5: Handphone charger | Q5: =VLOOKUP(P5,'Daftar Peralatan'!$B$4:$C$23,2,FALSE) -> 15 | R5: 1 | S5: 1 | T5: =Q5*R5 -> 15 | U5: =S5*T5 -> 15
B6: Pilih peralatan | C6: =VLOOKUP(B6,'Daftar Peralatan'!$B$4:$C$23,2,FALSE) -> 0 | D6: 0 | E6: 0 | F6: =C6*D6 -> 0 | G6: 0 | I6: Handphone charger | J6: =VLOOKUP(I6,'Daftar Peralatan'!$B$4:$C$23,2,FALSE) -> 15 | K6: 1 | L6: 1 | M6: 15 | N6: 15 | P6: Kipas angin | Q6: =VLOOKUP(P6,'Daftar Peralatan'!$B$4:$C$23,2,FALSE) -> 40 | R6: 1 | S6: 5 | T6: =Q6*R6 -> 40 | U6: 200
B7: Pilih peralatan | C7: =VLOOKUP(B7,'Daftar Peralatan'!$B$4:$C$23,2,FALSE) -> 0 | D7: 0 | E7: 0 | F7: =C7*D7 -> 0 | G7: 0 | I7: Pilih peralatan | J7: =VLOOKUP(I7,'Daftar Peralatan'!$B$4:$C$23,2,FALSE) -> 0 | K7: 0 | L7: 0 | M7: 0 | N7: 0 | P7: Rice cooker | Q7: =VLOOKUP(P7,'Daftar Peralatan'!$B$4:$C$23,2,FALSE) -> 400 | R7: 1 | S7: 1 | T7: =Q7*R7 -> 400 | U7: 400
B8: Pilih peralatan | C8: =VLOOKUP(B8,'Daftar Peralatan'!$B$4:$C$23,2,FALSE) -> 0 | D8: 0 | E8: 0 | F8: =C8*D8 -> 0 | G8: 0 | I8: Pilih peralatan | J8: =VLOOKUP(I8,'Daftar Peralatan'!$B$4:$C$23,2,FALSE) -> 0 | K8: 0 | L8: 0 | M8: 0 | N8: 0 | P8: Pilih peralatan | Q8: =VLOOKUP(P8,'Daftar Peralatan'!$B$4:$C$23,2,FALSE) -> 0 | R8: 0 | S8: 0 | T8: =Q8*R8 -> 0 | U8: 0
B9: Pilih peralatan | C9: =VLOOKUP(B9,'Daftar Peralatan'!$B$4:$C$23,2,FALSE) -> 0 | D9: 0 | E9: 0 | F9: 0 | G9: 0 | I9: Pilih peralatan | J9: =VLOOKUP(I9,'Daftar Peralatan'!$B$4:$C$23,2,FALSE) -> 0 | K9: 0 | L9: 0 | M9: 0 | N9: 0 | P9: Pilih peralatan | Q9: =VLOOKUP(P9,'Daftar Peralatan'!$B$4:$C$23,2,FALSE) -> 0 | R9: 0 | S9: 0 | T9: 0 | U9: 0
B10: Pilih peralatan | C10: =VLOOKUP(B10,'Daftar Peralatan'!$B$4:$C$23,2,FALSE) -> 0 | D10: 0 | E10: 0 | F10: 0 | G10: 0 | I10: Pilih peralatan | J10: =VLOOKUP(I10,'Daftar Peralatan'!$B$4:$C$23,2,FALSE) -> 0 | K10: 0 | L10: 0 | M10: 0 | N10: 0 | P10: Pilih peralatan | Q10: =VLOOKUP(P10,'Daftar Peralatan'!$B$4:$C$23,2,FALSE) -> 0 | R10: 0 | S10: 0 | T10: 0 | U10: 0
B11: Pilih peralatan | C11: =VLOOKUP(B11,'Daftar Peralatan'!$B$4:$C$23,2,FALSE) -> 0 | F11: 0 | G11: 0 | I11: Pilih peralatan | J11: =VLOOKUP(I11,'Daftar Peralatan'!$B$4:$C$23,2,FALSE) -> 0 | K11: 0 | L11: 0 | M11: 0 | N11: 0 | P11: Pilih peralatan | Q11: =VLOOKUP(P11,'Daftar Peralatan'!$B$4:$C$23,2,FALSE) -> 0 | R11: 0 | S11: 0 | T11: 0 | U11: 0
B12: Pilih peralatan | C12: =VLOOKUP(B12,'Daftar Peralatan'!$B$4:$C$23,2,FALSE) -> 0 | D12: 0 | E12: 0 | F12: 0 | G12: 0 | I12: Pilih peralatan | J12: =VLOOKUP(I12,'Daftar Peralatan'!$B$4:$C$23,2,FALSE) -> 0 | K12: 0 | L12: 0 | M12: 0 | N12: 0 | P12: Pilih peralatan | Q12: =VLOOKUP(P12,'Daftar Peralatan'!$B$4:$C$23,2,FALSE) -> 0 | R12: 0 | S12: 0 | T12: 0 | U12: 0
B13: Pilih peralatan | C13: =VLOOKUP(B13,'Daftar Peralatan'!$B$4:$C$23,2,FALSE) -> 0 | D13: 0 | E13: 0 | F13: 0 | G13: 0 | I13: Pilih peralatan | J13: =VLOOKUP(I13,'Daftar Peralatan'!$B$4:$C$23,2,FALSE) -> 0 | K13: 0 | L13: 0 | M13: 0 | N13: 0 | P13: Pilih peralatan | Q13: =VLOOKUP(P13,'Daftar Peralatan'!$B$4:$C$23,2,FALSE) -> 0 | R13: 0 | S13: 0 | T13: 0 | U13: 0
B14: Permintaan/konsumsi harian | F14: =SUM(F4:F13) -> 140 | G14: =SUM(G4:G13) -> 480 | I14: Permintaan/konsumsi harian | M14: =SUM(M4:M13) -> 115 | N14: =SUM(N4:N13) -> 655 | P14: Permintaan/konsumsi harian | T14: =SUM(T4:T13) -> 475 | U14: =SUM(U4:U13) -> 655

Sheet Beban IS
B1: INPUT: Perhitungan Beban Harian Institusi Sosial (IS)
B2: Permintaan IS: | E2: Sekolah | I2: Permintaan IS: | L2: Lampu jalan | P2: Permintaan IS: | S2: Tipe 3
B3: Peralatan | C3: Wattage | D3: Jml | E3: Jam/ Hari | F3: Total W | G3: Total Wh | I3: Peralatan | J3: Wattage | K3: Jml | L3: Jam/ Hari | M3: Total W | N3: Total Wh | P3: Peralatan | Q3: Wattage | R3: Jml | S3: Jam/ Hari | T3: Total W | U3: Total Wh
B4: Lampu | C4: =VLOOKUP(B4,'Daftar Peralatan'!$E$4:$F$23,2,FALSE) -> 20 | D4: 6 | E4: 8 | F4: =C4*D4 -> 120 | G4: =E4*F4 -> 960 | I4: Lampu jalan | J4: =VLOOKUP(I4,'Daftar Peralatan'!$E$4:$F$23,2,FALSE) -> 10 | K4: 1 | L4: 8 | M4: =J4*K4 -> 10 | N4: =L4*M4 -> 80 | P4: Pilih peralatan | Q4: =VLOOKUP(P4,'Daftar Peralatan'!$E$4:$F$23,2,FALSE) -> 0 | T4: =Q4*R4 -> 0 | U4: =S4*T4 -> 0
B5: Pilih peralatan | C5: =VLOOKUP(B5,'Daftar Peralatan'!$E$4:$F$23,2,FALSE) -> 0 | F5: =C5*D5 -> 0 | G5: =E5*F5 -> 0 | I5: Pilih peralatan | J5: =VLOOKUP(I5,'Daftar Peralatan'!$E$4:$F$23,2,FALSE) -> 0 | K5: 0 | L5: 0 | M5: =J5*K5 -> 0 | N5: =L5*M5 -> 0 | P5: Pilih peralatan | Q5: =VLOOKUP(P5,'Daftar Peralatan'!$E$4:$F$23,2,FALSE) -> 0 | R5: 0 | S5: 0 | T5: =Q5*R5 -> 0 | U5: =S5*T5 -> 0
B6: Pilih peralatan | C6: =VLOOKUP(B6,'Daftar Peralatan'!$E$4:$F$23,2,FALSE) -> 0 | D6: 0 | E6: 0 | F6: =C6*D6 -> 0 | G6: 0 | I6: Pilih peralatan | J6: =VLOOKUP(I6,'Daftar Peralatan'!$E$4:$F$23,2,FALSE) -> 0 | K6: 0 | L6: 0 | M6: =J6*K6 -> 0 | N6: 0 | P6: Pilih peralatan | Q6: =VLOOKUP(P6,'Daftar Peralatan'!$E$4:$F$23,2,FALSE) -> 0 | R6: 0 | S6: 0 | T6: =Q6*R6 -> 0 | U6: 0
B7: Pilih peralatan | C7: =VLOOKUP(B7,'Daftar Peralatan'!$E$4:$F$23,2,FALSE) -> 0 | F7: =C7*D7 -> 0 | G7: 0 | I7: Pilih peralatan | J7: =VLOOKUP(I7,'Daftar Peralatan'!$E$4:$F$23,2,FALSE) -> 0 | M7: =J7*K7 -> 0 | N7: 0 | P7: Pilih peralatan | Q7: =VLOOKUP(P7,'Daftar Peralatan'!$E$4:$F$23,2,FALSE) -> 0 | T7: =Q7*R7 -> 0 | U7: 0
B8: Pilih peralatan | C8: =VLOOKUP(B8,'Daftar Peralatan'!$E$4:$F$23,2,FALSE) -> 0 | F8: =C8*D8 -> 0 | G8: 0 | I8: Pilih peralatan | J8: =VLOOKUP(I8,'Daftar Peralatan'!$E$4:$F$23,2,FALSE) -> 0 | M8: =J8*K8 -> 0 | N8: 0 | P8: Pilih peralatan | Q8: =VLOOKUP(P8,'Daftar Peralatan'!$E$4:$F$23,2,FALSE) -> 0 | T8: =Q8*R8 -> 0 | U8: 0
B9: Pilih peralatan | C9: =VLOOKUP(B9,'Daftar Peralatan'!$E$4:$F$23,2,FALSE) -> 0 | F9: 0 | G9: 0 | I9: Pilih peralatan | J9: =VLOOKUP(I9,'Daftar Peralatan'!$E$4:$F$23,2,FALSE) -> 0 | M9: 0 | N9: 0 | P9: Pilih peralatan | Q9: =VLOOKUP(P9,'Daftar Peralatan'!$E$4:$F$23,2,FALSE) -> 0 | T9: 0 | U9: 0
B10: Pilih peralatan | C10: =VLOOKUP(B10,'Daftar Peralatan'!$E$4:$F$23,2,FALSE) -> 0 | F10: 0 | G10: 0 | I10: Pilih peralatan | J10: =VLOOKUP(I10,'Daftar Peralatan'!$E$4:$F$23,2,FALSE) -> 0 | M10: 0 | N10: 0 | P10: Pilih peralatan | Q10: =VLOOKUP(P10,'Daftar Peralatan'!$E$4:$F$23,2,FALSE) -> 0 | T10: 0 | U10: 0
B11: Pilih peralatan | C11: =VLOOKUP(B11,'Daftar Peralatan'!$E$4:$F$23,2,FALSE) -> 0 | F11: 0 | G11: 0 | I11: Pilih peralatan | J11: =VLOOKUP(I11,'Daftar Peralatan'!$E$4:$F$23,2,FALSE) -> 0 | M11: 0 | N11: 0 | P11: Pilih peralatan | Q11: =VLOOKUP(P11,'Daftar Peralatan'!$E$4:$F$23,2,FALSE) -> 0 | T11: 0 | U11: 0
B12: Pilih peralatan | C12: =VLOOKUP(B12,'Daftar Peralatan'!$E$4:$F$23,2,FALSE) -> 0 | F12: 0 | G12: 0 | I12: Pilih peralatan | J12: =VLOOKUP(I12,'Daftar Peralatan'!$E$4:$F$23,2,FALSE) -> 0 | M12: 0 | N12: 0 | P12: Pilih peralatan | Q12: =VLOOKUP(P12,'Daftar Peralatan'!$E$4:$F$23,2,FALSE) -> 0 | T12: 0 | U12: 0
B13: Pilih peralatan | C13: =VLOOKUP(B13,'Daftar Peralatan'!$E$4:$F$23,2,FALSE) -> 0 | F13: 0 | G13: 0 | I13: Pilih peralatan | J13: =VLOOKUP(I13,'Daftar Peralatan'!$E$4:$F$23,2,FALSE) -> 0 | M13: 0 | N13: 0 | P13: Pilih peralatan | Q13: =VLOOKUP(P13,'Daftar Peralatan'!$E$4:$F$23,2,FALSE) -> 0 | T13: 0 | U13: 0
B14: Permintaan/konsumsi harian | F14: =SUM(F4:F13) -> 120 | G14: =SUM(G4:G13) -> 960 | I14: Permintaan/konsumsi harian | M14: =SUM(M4:M13) -> 10 | N14: =SUM(N4:N13) -> 80 | P14: Permintaan/konsumsi harian | T14: =SUM(T4:T13) -> 0 | U14: =SUM(U4:U13) -> 0

Sheet Beban PUE
B1: INPUT: Perhitungan Beban Harian Bisnis (PUE)
B2: Permintaan PUE: | D2: Penjahit | I2: Permintaan PUE: | K2: Penetasan telur
B3: Peralatan | C3: Wattage | D3: Jml | E3: Jam/ Hari | F3: Total W | G3: Total Wh | I3: Peralatan | J3: Wattage | K3: Jml | L3: Jam/ Hari | M3: Total W | N3: Total Wh
B4: Mesin jahit | C4: =VLOOKUP(B4,'Daftar Peralatan'!$H$4:$I$39,2,FALSE) -> 120 | D4: 3 | E4: 2 | F4: =C4*D4 -> 360 | G4: =E4*F4 -> 720 | I4: Inkubator telur | J4: =VLOOKUP(I4,'Daftar Peralatan'!$H$4:$I$39,2,FALSE) -> 200 | K4: 1 | L4: 24 | M4: =J4*K4 -> 200 | N4: =L4*M4 -> 4800
B5: Pilih peralatan | C5: =VLOOKUP(B5,'Daftar Peralatan'!$H$4:$I$39,2,FALSE) -> 0 | F5: =C5*D5 -> 0 | G5: =E5*F5 -> 0 | I5: Pilih peralatan | J5: =VLOOKUP(I5,'Daftar Peralatan'!$H$4:$I$39,2,FALSE) -> 0 | K5: 0 | L5: 0 | M5: =J5*K5 -> 0 | N5: =L5*M5 -> 0
B6: Pilih peralatan | C6: =VLOOKUP(B6,'Daftar Peralatan'!$H$4:$I$39,2,FALSE) -> 0 | F6: =C6*D6 -> 0 | G6: 0 | I6: Pilih peralatan | J6: =VLOOKUP(I6,'Daftar Peralatan'!$H$4:$I$39,2,FALSE) -> 0 | K6: 0 | L6: 0 | M6: =J6*K6 -> 0 | N6: 0
B7: Pilih peralatan | C7: =VLOOKUP(B7,'Daftar Peralatan'!$H$4:$I$39,2,FALSE) -> 0 | F7: =C7*D7 -> 0 | G7: 0 | I7: Pilih peralatan | J7: =VLOOKUP(I7,'Daftar Peralatan'!$H$4:$I$39,2,FALSE) -> 0 | M7: =J7*K7 -> 0 | N7: 0
B8: Pilih peralatan | C8: =VLOOKUP(B8,'Daftar Peralatan'!$H$4:$I$39,2,FALSE) -> 0 | F8: =C8*D8 -> 0 | G8: 0 | I8: Pilih peralatan | J8: =VLOOKUP(I8,'Daftar Peralatan'!$H$4:$I$39,2,FALSE) -> 0 | M8: =J8*K8 -> 0 | N8: 0
B9: Pilih peralatan | C9: =VLOOKUP(B9,'Daftar Peralatan'!$H$4:$I$39,2,FALSE) -> 0 | F9: 0 | G9: 0 | I9: Pilih peralatan | J9: =VLOOKUP(I9,'Daftar Peralatan'!$H$4:$I$39,2,FALSE) -> 0 | M9: 0 | N9: 0
B10: Pilih peralatan | C10: =VLOOKUP(B10,'Daftar Peralatan'!$H$4:$I$39,2,FALSE) -> 0 | F10: 0 | G10: 0 | I10: Pilih peralatan | J10: =VLOOKUP(I10,'Daftar Peralatan'!$H$4:$I$39,2,FALSE) -> 0 | M10: 0 | N10: 0
B11: Pilih peralatan | C11: =VLOOKUP(B11,'Daftar Peralatan'!$H$4:$I$39,2,FALSE) -> 0 | F11: 0 | G11: 0 | I11: Pilih peralatan | J11: =VLOOKUP(I11,'Daftar Peralatan'!$H$4:$I$39,2,FALSE) -> 0 | M11: 0 | N11: 0
B12: Pilih peralatan | C12: =VLOOKUP(B12,'Daftar Peralatan'!$H$4:$I$39,2,FALSE) -> 0 | F12: 0 | G12: 0 | I12: Pilih peralatan | J12: =VLOOKUP(I12,'Daftar Peralatan'!$H$4:$I$39,2,FALSE) -> 0 | M12: 0 | N12: 0
B13: Pilih peralatan | C13: =VLOOKUP(B13,'Daftar Peralatan'!$H$4:$I$39,2,FALSE) -> 0 | F13: 0 | G13: 0 | I13: Pilih peralatan | J13: =VLOOKUP(I13,'Daftar Peralatan'!$H$4:$I$39,2,FALSE) -> 0 | M13: 0 | N13: 0
B14: Permintaan/konsumsi harian | F14: =SUM(F4:F13) -> 360 | G14: =SUM(G4:G13) -> 720 | I14: Permintaan/konsumsi harian | M14: =SUM(M4:M13) -> 200 | N14: =SUM(N4:N13) -> 4800
B16: Permintaan PUE: | D16: Tipe 3 | I16: Permintaan PUE: | K16: Tipe 4
B17: Peralatan | C17: Wattage | D17: Jml | E17: Jam/ Hari | F17: Total W | G17: Total Wh | I17: Peralatan | J17: Wattage | K17: Jml | L17: Jam/ Hari | M17: Total W | N17: Total Wh
B18: Pilih peralatan | C18: =VLOOKUP(B18,'Daftar Peralatan'!$H$4:$I$39,2,FALSE) -> 0 | F18: =C18*D18 -> 0 | G18: =E18*F18 -> 0 | I18: Pilih peralatan | J18: =VLOOKUP(I18,'Daftar Peralatan'!$H$4:$I$39,2,FALSE) -> 0 | M18: =J18*K18 -> 0 | N18: =L18*M18 -> 0
B19: Pilih peralatan | C19: =VLOOKUP(B19,'Daftar Peralatan'!$H$4:$I$39,2,FALSE) -> 0 | D19: 0 | E19: 0 | F19: =C19*D19 -> 0 | G19: =E19*F19 -> 0 | I19: Pilih peralatan | J19: =VLOOKUP(I19,'Daftar Peralatan'!$H$4:$I$39,2,FALSE) -> 0 | M19: =J19*K19 -> 0 | N19: =L19*M19 -> 0
B20: Pilih peralatan | C20: =VLOOKUP(B20,'Daftar Peralatan'!$H$4:$I$39,2,FALSE) -> 0 | D20: 0 | E20: 0 | F20: =C20*D20 -> 0 | G20: 0 | I20: Pilih peralatan | J20: =VLOOKUP(I20,'Daftar Peralatan'!$H$4:$I$39,2,FALSE) -> 0 | K20: 0 | L20: 0 | M20: =J20*K20 -> 0 | N20: 0
B21: Pilih peralatan | C21: =VLOOKUP(B21,'Daftar Peralatan'!$H$4:$I$39,2,FALSE) -> 0 | F21: =C21*D21 -> 0 | G21: 0 | I21: Pilih peralatan | J21: =VLOOKUP(I21,'Daftar Peralatan'!$H$4:$I$39,2,FALSE) -> 0 | M21: =J21*K21 -> 0 | N21: 0
B22: Pilih peralatan | C22: =VLOOKUP(B22,'Daftar Peralatan'!$H$4:$I$39,2,FALSE) -> 0 | F22: =C22*D22 -> 0 | G22: 0 | I22: Pilih peralatan | J22: =VLOOKUP(I22,'Daftar Peralatan'!$H$4:$I$39,2,FALSE) -> 0 | M22: =J22*K22 -> 0 | N22: 0
B23: Pilih peralatan | C23: =VLOOKUP(B23,'Daftar Peralatan'!$H$4:$I$39,2,FALSE) -> 0 | F23: 0 | G23: 0 | I23: Pilih peralatan | J23: =VLOOKUP(I23,'Daftar Peralatan'!$H$4:$I$39,2,FALSE) -> 0 | M23: 0 | N23: 0
B24: Pilih peralatan | C24: =VLOOKUP(B24,'Daftar Peralatan'!$H$4:$I$39,2,FALSE) -> 0 | F24: 0 | G24: 0 | I24: Pilih peralatan | J24: =VLOOKUP(I24,'Daftar Peralatan'!$H$4:$I$39,2,FALSE) -> 0 | M24: 0 | N24: 0
B25: Pilih peralatan | C25: =VLOOKUP(B25,'Daftar Peralatan'!$H$4:$I$39,2,FALSE) -> 0 | F25: 0 | G25: 0 | I25: Pilih peralatan | J25: =VLOOKUP(I25,'Daftar Peralatan'!$H$4:$I$39,2,FALSE) -> 0 | M25: 0 | N25: 0
B26: Pilih peralatan | C26: =VLOOKUP(B26,'Daftar Peralatan'!$H$4:$I$39,2,FALSE) -> 0 | F26: 0 | G26: 0 | I26: Pilih peralatan | J26: =VLOOKUP(I26,'Daftar Peralatan'!$H$4:$I$39,2,FALSE) -> 0 | M26: 0 | N26: 0
B27: Pilih peralatan | C27: =VLOOKUP(B27,'Daftar Peralatan'!$H$4:$I$39,2,FALSE) -> 0 | F27: 0 | G27: 0 | I27: Pilih peralatan | J27: =VLOOKUP(I27,'Daftar Peralatan'!$H$4:$I$39,2,FALSE) -> 0 | M27: 0 | N27: 0
B28: Permintaan/konsumsi harian | F28: =SUM(F18:F27) -> 0 | G28: =SUM(G18:G27) -> 0 | I28: Permintaan/konsumsi harian | M28: =SUM(M18:M27) -> 0 | N28: =SUM(N18:N27) -> 0

Sheet Parameter Teknis SMG
B1: INPUT: Parameter Teknis Solar Mini-grid (SMG)
B2: Spesifikasi Teknis SMG | F2: Biaya Pemasangan SMG | J2: Ringkasan
B3: Parameter | C3: Unit | D3: Nilai | H3: Konversi mata uang | J3: Pelanggan listrik
B4: MODUL SURYA | F4: Komponen | G4: Total Biaya | H4: 15500 | J4: Tipe | K4: Jumlah | L4: Energi per Hari
B5: Power | C5: Wp | D5: 200 | F5: Modul PV | G5: =D7*K13 -> 500000000 | H5: =G5/$H$4 -> 32258.06452 | J5: =Dasbor!Q5 -> Permintaan rumah tangga (KK) | K5: =SUM(Dasbor!T7:T9) -> 61 | L5: =SUM(Dasbor!V10) -> 31.205
B6: Module Type | D6: Thin Film PV | F6: Controller | G6: =D10*K14 -> 18000000 | H6: 1161.290323 | J6: =Dasbor!Q12 -> Permintaan institusi sosial (IS) | K6: =SUM(Dasbor!T13:T15) -> 51 | L6: =SUM(Dasbor!V16) -> 4.96
B7: Harga Unit | D7: 5000000 | F7: Baterai | G7: =D19*K15 -> 1319500000 | H7: 85129.03226 | J7: =Dasbor!Q18 -> Permintaan bisnis perdesaan (PUE) | K7: =SUM(Dasbor!T19:T22) -> 2 | L7: =Dasbor!V23 -> 5.52
B8: CHARGE CONTROLLER | F8: DC/AC Converter | G8: =D13*K16 -> 320000000 | H8: 20645.16129 | J8: Total Energi Dikonsumsi per Hari | L8: =SUM(L5:L7) -> 41.685
B9: Rated Power | C9: kWatt | D9: 5 | F9: Alat lain | G9: 250000000 | H9: 16129.03226 | J9: Total energi terbangkit per hari | L9: =L13*D21*Dasbor!E23 -> 85
B10: Harga Unit | D10: 4500000 | F10: Lahan | G10: =D22*L19 -> 286250000 | H10: 18467.74194 | J10: Surplus/defisit energi per hari | L10: =L9-L8 -> 43.315
B11: INVERTER | F11: Transportasi | G11: =SUM(G5:G9)*H17 -> 0 | H11: 0 | J11: Instalasi SMG
B12: Rated Power | C12: kWatt | D12: 6 | F12: Tenaga kerja | G12: =H18*(G5+G6+G7+G8+G9) -> 240750000 | H12: 15532.25806 | J12: Tipe | K12: Jumlah | L12: Kapasitas Total
B13: Harga Unit | D13: 80000000 | F13: Bangunan | G13: =H19*L18 -> 72500000 | H13: 4677.419355 | J13: Modul PV | K13: =(Dasbor!E22*D27)/'Parameter Teknis SMG'!D5 -> 100 | L13: =(K13*D5)/D27 -> 20
B14: BATERAI | F14: TOTAL | G14: =SUM(G5:G13) -> 3007000000 | H14: 194000 | J14: Charge Controller | K14: =ROUNDUP(L13/'Parameter Teknis SMG'!D9,0) -> 4 | L14: =ROUNDUP(K14*D9,3) -> 20
B15: Op. Voltage | C15: Volt | D15: 2 | F15: Asumsi untuk Perhitungan | J15: Baterai | K15: =ROUNDUP((L8*D27/D15)/(D16*D17),0)*D18 -> 145 | L15: =K15*'Parameter Teknis SMG'!D15*'Parameter Teknis SMG'!D16/1000 -> 348
B16: Capacity | C16: Ah | D16: 1200 | F16: Biaya lain-lain: | J16: Inverter | K16: =ROUNDUP((L13/'Parameter Teknis SMG'!D12), 0) -> 4 | L16: =K16*'Parameter Teknis SMG'!D12 -> 24
B17: Deep of Discharge | C17: % | D17: 0.6 | F17: Transportasi | G17: % dari biaya peralatan | H17: 0 | J17: Luas lahan PV | K17: =VLOOKUP(D6,B24:D26,3,FALSE) -> 25 | L17: =L13*K17 -> 500
B18: Autonomy | C18: Days | D18: 5 | F18: Tenaga kerja | G18: % dari biaya peralatan | H18: 0.1 | J18: Luas powerhouse | L18: =K15*D28 -> 72.5
B19: Harga Unit | D19: 9100000 | F19: Bangunan (shelter) | G19: IDR per m2 | H19: 1000000 | J19: Total luas instalasi | L19: =L17+L18 -> 572.5
B20: LOKASI
B21: Peak Sun Hours | C21: hours/day | D21: 5
B22: Harga tanah per m² | D22: 500000
B23: Asumsi untuk Perhitungan
B24: Monocrystalline | C24: 1kWp | D24: 12
B25: Polycrystalline | C25: 1 MW | D25: 14
B26: Thin Film PV | C26: 1 MW | D26: 25
B27: kW PV / MW | C27: 1 kW | D27: 1000
B28: Powerhouse | C28: per baterai | D28: 0.5

Sheet Daftar Peralatan
A1: Daftar Peralatan
B2: Rumah tangga | E2: Institusi sosial/fasilitas publik | H2: Bisnis perdesaan (PUE)
B3: Jenis Peralatan | C3: Wattage | E3: Jenis Peralatan | F3: Wattage | H3: Jenis Peralatan | I3: Wattage
B4: Pilih peralatan | C4: 0 | E4: Pilih peralatan | F4: 0 | H4: Pilih peralatan | I4: 0
B5: DVD player | C5: 40 | E5: Komputer (PC) | F5: 70 | H5: Bench drill | I5: 1500
B6: Handphone charger | C6: 15 | E6: Lampu | F6: 20 | H6: Bench grinder | I6: 200
B7: Kipas angin | C7: 40 | E7: Lampu jalan | F7: 10 | H7: Blender | I7: 350
B8: Lampu (fluorescent) | C8: 20 | E8: Printer | F8: 60 | H8: Blower | I8: 600
B9: Microwave | C9: 1000 | E9: Speaker | F9: 25 | H9: Bor tangan | I9: 450
B10: Rice cooker | C10: 400 | H10: Dispenser | I10: 350
B11: TV colour 21 inch | C11: 70 | H11: Freezer | I11: 130
H12: Gergaji mesin | I12: 1050
H13: Gerinda logam | I13: 600
H14: Inkubator telur | I14: 200
H15: Kompresor | I15: 1500
H16: Lampu meja | I16: 20
H17: Las inverter | I17: 1300
H18: Mesin amplas (sander) | I18: 180
H19: Mesin bordir | I19: 250
H20: Mesin jahit | I20: 120
H21: Mesin neci | I21: 100
H22: Mesin obras | I22: 100
H23: Mesin planer | I23: 580
H24: Mesin trimmer (profiler) | I24: 530
H25: Mixer adonan | I25: 170
H26: Mixer makanan | I26: 200
H27: Oven | I27: 800
H28: Pengepak vakum | I28: 300
H29: Penggiling kopi | I29: 900
H30: Penggiling padi | I30: 1500
H31: Rice cooker | I31: 400
H32: Sealer | I32: 400
B37: TIPS!
B38: 1. Anda bisa menambah daftar ini dengan peralatan lainnya
B39: 2. Disarankan untuk mengurut daftar yang baru untuk mempermudah pencarian
